[Event "Early-Titled-Tuesday-Blitz-March-19-2024"]
[Site "Chess.com"]
[Date "2024.03.19"]
[Round "9"]
[White "EternalNight8"]
[Black "Sofia_Blokhin"]
[Result "1-0"]
[WhiteElo "2487"]
[BlackElo "2250"]
[TimeControl "180+1"]
[EndTime "9:46:27 PDT"]
[Termination "EternalNight8 won on time"]

1. d4 {[%clk 0:03:00.9]} 1... f5 {[%clk 0:02:59.4]} 2. Bg5 {[%clk 0:02:59.4]}
2... h6 {[%clk 0:02:58.6]} 3. Bh4 {[%clk 0:02:58.8]} 3... g5 {[%clk 0:02:51.4]}
4. Bg3 {[%clk 0:02:58.5]} 4... Nf6 {[%clk 0:02:49.4]} 5. e3 {[%clk 0:02:58.2]}
5... d6 {[%clk 0:02:48.3]} 6. Be2 {[%clk 0:02:55.5]} 6... e6 {[%clk 0:02:48.1]}
7. Bh5+ {[%clk 0:02:54.8]} 7... Ke7 {[%clk 0:02:42.2]} 8. Be2 {[%clk 0:02:53.9]}
8... Nc6 {[%clk 0:02:39.7]} 9. Nc3 {[%clk 0:02:51]} 9... Bd7 {[%clk 0:02:39.4]}
10. h4 {[%clk 0:02:41.5]} 10... Rg8 {[%clk 0:02:38.4]} 11. hxg5 {[%clk
0:02:39.8]} 11... hxg5 {[%clk 0:02:38.1]} 12. Qd2 {[%clk 0:02:27.3]} 12... Qe8
{[%clk 0:02:37.1]} 13. O-O-O {[%clk 0:02:24.7]} 13... Qf7 {[%clk 0:02:32.2]} 14.
f3 {[%clk 0:02:02.1]} 14... Re8 {[%clk 0:02:27.4]} 15. e4 {[%clk 0:02:00.1]}
15... f4 {[%clk 0:02:18.9]} 16. Bf2 {[%clk 0:01:56]} 16... d5 {[%clk 0:02:07.4]}
17. e5 {[%clk 0:01:37.1]} 17... Nh5 {[%clk 0:02:06.6]} 18. Kb1 {[%clk
0:01:24.2]} 18... Kd8 {[%clk 0:02:05.6]} 19. Bd3 {[%clk 0:01:20.8]} 19... Bb4
{[%clk 0:01:54.6]} 20. Nge2 {[%clk 0:01:16.7]} 20... Rh8 {[%clk 0:01:52.8]} 21.
a3 {[%clk 0:01:14.6]} 21... Ba5 {[%clk 0:01:52.1]} 22. b4 {[%clk 0:01:06]} 22...
Bb6 {[%clk 0:01:51.3]} 23. Rh3 {[%clk 0:00:53]} 23... Ng7 {[%clk 0:01:49.8]} 24.
Rdh1 {[%clk 0:00:50]} 24... Rxh3 {[%clk 0:01:46.4]} 25. Rxh3 {[%clk 0:00:50.9]}
25... Nf5 {[%clk 0:01:43.4]} 26. Bxf5 {[%clk 0:00:40.9]} 26... Qxf5 {[%clk
0:01:43]} 27. Nc1 {[%clk 0:00:37.6]} 27... Kc8 {[%clk 0:01:38.7]} 28. Nb3 {[%clk
0:00:36.2]} 28... g4 {[%clk 0:01:32.2]} 29. fxg4 {[%clk 0:00:35.9]} 29... Qxg4
{[%clk 0:01:32.5]} 30. Be1 {[%clk 0:00:27.1]} 30... Rg8 {[%clk 0:01:31]} 31. Rf3
{[%clk 0:00:20.7]} 31... Qxg2 {[%clk 0:01:26.7]} 32. Qxf4 {[%clk 0:00:20.8]}
32... Kb8 {[%clk 0:01:18.5]} 33. Rf2 {[%clk 0:00:18.9]} 33... Qg1 {[%clk
0:01:16.7]} 34. Rf1 {[%clk 0:00:19]} 34... Qg2 {[%clk 0:01:15.6]} 35. Bd2 {[%clk
0:00:16]} 35... a6 {[%clk 0:01:13.7]} 36. Be3 {[%clk 0:00:14.3]} 36... Ne7
{[%clk 0:01:09.1]} 37. Rg1 {[%clk 0:00:14.2]} 37... Qxg1+ {[%clk 0:01:03.8]} 38.
Bxg1 {[%clk 0:00:15.1]} 38... Rxg1+ {[%clk 0:01:03.6]} 39. Kb2 {[%clk 0:00:16]}
39... Nf5 {[%clk 0:01:01.6]} 40. Qf2 {[%clk 0:00:13.8]} 40... Rg4 {[%clk
0:00:59.2]} 41. Ne2 {[%clk 0:00:12.9]} 41... Bb5 {[%clk 0:00:56.8]} 42. Nc5
{[%clk 0:00:10.5]} 42... Bxc5 {[%clk 0:00:53.6]} 43. dxc5 {[%clk 0:00:11.4]}
43... Bxe2 {[%clk 0:00:44.9]} 44. Qxe2 {[%clk 0:00:12.3]} 44... Re4 {[%clk
0:00:45]} 45. Qh5 {[%clk 0:00:13]} 45... Ka7 {[%clk 0:00:41.2]} 46. Qh8 {[%clk
0:00:11.3]} 46... Re2 {[%clk 0:00:37.8]} 47. Qh5 {[%clk 0:00:08.9]} 47... Nd4
{[%clk 0:00:33.7]} 48. Kb1 {[%clk 0:00:07.6]} 48... Rxc2 {[%clk 0:00:29.7]} 49.
Qd1 {[%clk 0:00:06.2]} 49... Rc4 {[%clk 0:00:28]} 50. Qd3 {[%clk 0:00:06]} 50...
Nb5 {[%clk 0:00:25.5]} 51. a4 {[%clk 0:00:04.9]} 51... Nc3+ {[%clk 0:00:25.5]}
52. Ka1 {[%clk 0:00:03.2]} 52... Nxa4 {[%clk 0:00:23.6]} 53. Qh3 {[%clk
0:00:03.9]} 53... Rxb4 {[%clk 0:00:21.4]} 54. Qxe6 {[%clk 0:00:04.5]} 54... Nxc5
{[%clk 0:00:20.4]} 55. Qxd5 {[%clk 0:00:04.4]} 55... b6 {[%clk 0:00:15.3]} 56.
Qc6 {[%clk 0:00:04.2]} 56... Kb8 {[%clk 0:00:13.7]} 57. Qe8+ {[%clk 0:00:03.7]}
57... Kb7 {[%clk 0:00:13.8]} 58. e6 {[%clk 0:00:03.8]} 58... Ra4+ {[%clk
0:00:13.3]} 59. Kb1 {[%clk 0:00:02.7]} 59... Re4 {[%clk 0:00:13.4]} 60. e7
{[%clk 0:00:02.6]} 60... Re1+ {[%clk 0:00:12.2]} 61. Kc2 {[%clk 0:00:03]} 61...
Re2+ {[%clk 0:00:11.7]} 62. Kd1 {[%clk 0:00:03.2]} 62... Re6 {[%clk 0:00:09.6]}
63. Qd8 {[%clk 0:00:03.6]} 63... a5 {[%clk 0:00:03.6]} 64. e8=Q {[%clk
0:00:03.2]} 64... Rxe8 {[%clk 0:00:03.5]} 65. Qxe8 {[%clk 0:00:04.1]} 65... a4
{[%clk 0:00:03.2]} 66. Kc2 {[%clk 0:00:04.7]} 66... Ka6 {[%clk 0:00:02.7]} 67.
Kb2 {[%clk 0:00:04.5]} 67... Ka5 {[%clk 0:00:02.9]} 68. Ka3 {[%clk 0:00:04.4]}
68... b5 {[%clk 0:00:02.8]} 69. Qa8+ {[%clk 0:00:04.3]} 69... Kb6 {[%clk
0:00:02.9]} 70. Qb8+ {[%clk 0:00:04.8]} 70... Nb7 {[%clk 0:00:03.1]} 71. Qh8
{[%clk 0:00:04]} 71... c5 {[%clk 0:00:01.1]} 72. Qf6+ {[%clk 0:00:04.6]} 1-0

[Event "Early-Titled-Tuesday-Blitz-March-19-2024"]
[Site "Chess.com"]
[Date "2024.03.19"]
[Round "9"]
[White "AlexTruskavetsky"]
[Black "cande_francisco"]
[Result "0-1"]
[WhiteElo "2675"]
[BlackElo "2549"]
[TimeControl "180+1"]
[EndTime "9:46:42 PDT"]
[Termination "cande_francisco won by checkmate"]

1. d4 {[%clk 0:03:00]} 1... Nf6 {[%clk 0:03:00.5]} 2. c4 {[%clk 0:02:59]} 2...
c5 {[%clk 0:03:00.8]} 3. d5 {[%clk 0:02:59.3]} 3... e6 {[%clk 0:03:01.1]} 4. Nc3
{[%clk 0:02:59.5]} 4... exd5 {[%clk 0:03:01.8]} 5. cxd5 {[%clk 0:03:00.4]} 5...
d6 {[%clk 0:03:02.6]} 6. e4 {[%clk 0:03:00.7]} 6... g6 {[%clk 0:03:03.1]} 7. f4
{[%clk 0:03:01.4]} 7... Bg7 {[%clk 0:03:03.3]} 8. Nf3 {[%clk 0:03:02]} 8... O-O
{[%clk 0:03:03.1]} 9. Bd3 {[%clk 0:03:02.6]} 9... Re8 {[%clk 0:02:58]} 10. O-O
{[%clk 0:03:02.6]} 10... Bg4 {[%clk 0:02:55.5]} 11. h3 {[%clk 0:03:01.1]} 11...
Bxf3 {[%clk 0:02:55.5]} 12. Qxf3 {[%clk 0:03:01.7]} 12... Nbd7 {[%clk 0:02:55]}
13. a4 {[%clk 0:02:59.1]} 13... a6 {[%clk 0:02:53]} 14. Bd2 {[%clk 0:02:54.5]}
14... Rc8 {[%clk 0:02:52.7]} 15. Rfe1 {[%clk 0:02:49.6]} 15... c4 {[%clk
0:02:52]} 16. Bc2 {[%clk 0:02:50]} 16... b5 {[%clk 0:02:49]} 17. axb5 {[%clk
0:02:47.2]} 17... axb5 {[%clk 0:02:49.9]} 18. Nd1 {[%clk 0:02:47.8]} 18... b4
{[%clk 0:02:47.9]} 19. Nf2 {[%clk 0:02:45.2]} 19... b3 {[%clk 0:02:27.6]} 20.
Bd1 {[%clk 0:02:23.1]} 20... Nc5 {[%clk 0:02:25.5]} 21. Bc3 {[%clk 0:02:19.7]}
21... Qd7 {[%clk 0:02:15.9]} 22. Re3 {[%clk 0:02:13.4]} 22... Na4 {[%clk
0:01:57.1]} 23. Rxa4 {[%clk 0:01:44.2]} 23... Qxa4 {[%clk 0:01:58]} 24. e5
{[%clk 0:01:44.5]} 24... Nd7 {[%clk 0:01:52.6]} 25. Ne4 {[%clk 0:01:40.9]} 25...
dxe5 {[%clk 0:01:50.9]} 26. Nd6 {[%clk 0:01:40.1]} 26... Qa7 {[%clk 0:01:31.5]}
27. Nxc8 {[%clk 0:01:37.1]} 27... Rxc8 {[%clk 0:01:31.9]} 28. fxe5 {[%clk
0:01:32.5]} 28... Nxe5 {[%clk 0:01:19.7]} 29. Qe4 {[%clk 0:01:30.9]} 29... Bh6
{[%clk 0:01:05.5]} 30. Bd4 {[%clk 0:01:28.1]} 30... Qe7 {[%clk 0:00:54.5]} 31.
Re1 {[%clk 0:01:16.8]} 31... f6 {[%clk 0:00:47.4]} 32. Bg4 {[%clk 0:01:14.4]}
32... Rd8 {[%clk 0:00:44.5]} 33. Be6+ {[%clk 0:01:14]} 33... Kh8 {[%clk
0:00:42.7]} 34. Rf1 {[%clk 0:01:11.5]} 34... Bg7 {[%clk 0:00:40.7]} 35. Bxe5
{[%clk 0:01:08.9]} 35... fxe5 {[%clk 0:00:40.2]} 36. Qxc4 {[%clk 0:01:09]} 36...
e4 {[%clk 0:00:36.7]} 37. Qxb3 {[%clk 0:01:03.6]} 37... Qc5+ {[%clk 0:00:36.8]}
38. Kh1 {[%clk 0:01:03.6]} 38... Be5 {[%clk 0:00:35.1]} 39. Qa4 {[%clk
0:00:59.2]} 39... Qe3 {[%clk 0:00:29.6]} 40. Qa5 {[%clk 0:00:45.8]} 40... Rb8
{[%clk 0:00:23.6]} 41. Qa3 {[%clk 0:00:23.3]} 41... Qxa3 {[%clk 0:00:17.7]} 42.
bxa3 {[%clk 0:00:24.2]} 42... e3 {[%clk 0:00:10.1]} 43. Bg4 {[%clk 0:00:21.5]}
43... h5 {[%clk 0:00:10]} 44. Bf3 {[%clk 0:00:19.9]} 44... Rb2 {[%clk
0:00:09.9]} 45. Re1 {[%clk 0:00:19.8]} 45... Bg3 {[%clk 0:00:09.1]} 46. Rc1
{[%clk 0:00:10.1]} 46... e2 {[%clk 0:00:09]} 47. Bxe2 {[%clk 0:00:10.6]} 47...
Rxe2 {[%clk 0:00:09.9]} 48. a4 {[%clk 0:00:10.9]} 48... Ra2 {[%clk 0:00:09.9]}
49. Rd1 {[%clk 0:00:05.2]} 49... Rxa4 {[%clk 0:00:06.1]} 50. d6 {[%clk
0:00:05.6]} 50... Ra8 {[%clk 0:00:06.9]} 51. d7 {[%clk 0:00:05.9]} 51... Rd8
{[%clk 0:00:07.6]} 52. Rd3 {[%clk 0:00:06.8]} 52... h4 {[%clk 0:00:07]} 53. Kg1
{[%clk 0:00:07]} 53... Kg7 {[%clk 0:00:07.4]} 54. Kf1 {[%clk 0:00:07.5]} 54...
Kf7 {[%clk 0:00:08.1]} 55. Ke2 {[%clk 0:00:08.1]} 55... Ke7 {[%clk 0:00:08.8]}
56. Kf3 {[%clk 0:00:08.6]} 56... Rxd7 {[%clk 0:00:09.6]} 57. Re3+ {[%clk
0:00:09.2]} 57... Kf6 {[%clk 0:00:09.8]} 58. Ra3 {[%clk 0:00:09]} 58... Rd5
{[%clk 0:00:10.1]} 59. Rb3 {[%clk 0:00:09.2]} 59... Kg5 {[%clk 0:00:09.2]} 60.
Rb4 {[%clk 0:00:09.1]} 60... Rf5+ {[%clk 0:00:08.8]} 61. Ke3 {[%clk 0:00:09.6]}
61... Rf2 {[%clk 0:00:06.9]} 62. Rb6 {[%clk 0:00:07.5]} 62... Rxg2 {[%clk
0:00:05.7]} 63. Rb5+ {[%clk 0:00:06.3]} 63... Kh6 {[%clk 0:00:05.7]} 64. Rb4
{[%clk 0:00:02.9]} 64... Rh2 {[%clk 0:00:04.9]} 65. Kf3 {[%clk 0:00:03.3]} 65...
Rxh3 {[%clk 0:00:05.3]} 66. Rb7 {[%clk 0:00:04.2]} 66... Rh2 {[%clk 0:00:04.9]}
67. Kg4 {[%clk 0:00:04.6]} 67... Rc2 {[%clk 0:00:04.3]} 68. Kh3 {[%clk
0:00:04.9]} 68... Rc4 {[%clk 0:00:04.5]} 69. Rb5 {[%clk 0:00:05.3]} 69... g5
{[%clk 0:00:04.5]} 70. Kg2 {[%clk 0:00:04.3]} 70... g4 {[%clk 0:00:04]} 71. Rd5
{[%clk 0:00:04.6]} 71... Rc2+ {[%clk 0:00:04]} 72. Kh1 {[%clk 0:00:05.2]} 72...
h3 {[%clk 0:00:02.2]} 73. Kg1 {[%clk 0:00:05.6]} 73... Rc1+ {[%clk 0:00:02.4]}
74. Rd1 {[%clk 0:00:05.6]} 74... Rxd1# {[%clk 0:00:03.3]} 0-1

[Event "Early-Titled-Tuesday-Blitz-March-19-2024"]
[Site "Chess.com"]
[Date "2024.03.19"]
[Round "9"]
[White "Kotofeyca"]
[Black "awesomevishesh"]
[Result "0-1"]
[WhiteElo "2460"]
[BlackElo "2616"]
[TimeControl "180+1"]
[EndTime "9:46:47 PDT"]
[Termination "awesomevishesh won by checkmate"]

1. d4 {[%clk 0:03:00.9]} 1... Nf6 {[%clk 0:02:59]} 2. c4 {[%clk 0:03:01]} 2...
g6 {[%clk 0:02:59.3]} 3. f3 {[%clk 0:03:01]} 3... Bg7 {[%clk 0:02:59.6]} 4. e4
{[%clk 0:03:01]} 4... d6 {[%clk 0:03:00.1]} 5. Nc3 {[%clk 0:03:01.9]} 5... O-O
{[%clk 0:02:59.9]} 6. Be3 {[%clk 0:03:02.4]} 6... a6 {[%clk 0:02:58.6]} 7. Bd3
{[%clk 0:03:01.3]} 7... Nbd7 {[%clk 0:02:58.3]} 8. Nge2 {[%clk 0:03:00.8]} 8...
c5 {[%clk 0:02:57.1]} 9. O-O {[%clk 0:02:57]} 9... b6 {[%clk 0:02:41]} 10. Qd2
{[%clk 0:02:51]} 10... Bb7 {[%clk 0:02:36.4]} 11. b3 {[%clk 0:02:44.8]} 11...
cxd4 {[%clk 0:02:33.6]} 12. Nxd4 {[%clk 0:02:44.5]} 12... Rc8 {[%clk 0:02:32]}
13. a4 {[%clk 0:02:28.6]} 13... Nc5 {[%clk 0:02:18.1]} 14. Bc2 {[%clk
0:02:25.6]} 14... Nfd7 {[%clk 0:02:13.1]} 15. a5 {[%clk 0:02:18.9]} 15... bxa5
{[%clk 0:02:11.3]} 16. Ra3 {[%clk 0:02:13.7]} 16... Re8 {[%clk 0:01:55.5]} 17.
Rfa1 {[%clk 0:02:08.5]} 17... Qb6 {[%clk 0:01:20.3]} 18. Rxa5 {[%clk 0:01:54.9]}
18... Bxd4 {[%clk 0:00:50.8]} 19. Bxd4 {[%clk 0:01:45.8]} 19... e5 {[%clk
0:00:44.6]} 20. Na4 {[%clk 0:01:07.6]} 20... Qc7 {[%clk 0:00:35.6]} 21. Be3
{[%clk 0:01:07.2]} 21... Nxa4 {[%clk 0:00:29.8]} 22. R5xa4 {[%clk 0:01:07.2]}
22... Nc5 {[%clk 0:00:29.1]} 23. R4a3 {[%clk 0:01:03.6]} 23... Ne6 {[%clk
0:00:23.7]} 24. Rd1 {[%clk 0:00:58.5]} 24... Red8 {[%clk 0:00:21.3]} 25. Kh1
{[%clk 0:00:57.2]} 25... f6 {[%clk 0:00:17.1]} 26. Qb4 {[%clk 0:00:55.4]} 26...
Nc5 {[%clk 0:00:15.5]} 27. Rd2 {[%clk 0:00:52]} 27... Rb8 {[%clk 0:00:15.3]} 28.
Qc3 {[%clk 0:00:50.6]} 28... Bc8 {[%clk 0:00:09]} 29. Ra1 {[%clk 0:00:50.4]}
29... Be6 {[%clk 0:00:05.4]} 30. Rad1 {[%clk 0:00:46.5]} 30... a5 {[%clk
0:00:04.7]} 31. Ra1 {[%clk 0:00:44.8]} 31... Nb7 {[%clk 0:00:04.1]} 32. h3
{[%clk 0:00:41.8]} 32... Kg7 {[%clk 0:00:04.2]} 33. Kh2 {[%clk 0:00:41]} 33...
Rdc8 {[%clk 0:00:04.6]} 34. Qd3 {[%clk 0:00:38.6]} 34... Ra8 {[%clk 0:00:04.6]}
35. Rdd1 {[%clk 0:00:36.7]} 35... Rd8 {[%clk 0:00:05]} 36. Qd2 {[%clk
0:00:37.2]} 36... Nc5 {[%clk 0:00:05.3]} 37. Qf2 {[%clk 0:00:35.9]} 37... Kf7
{[%clk 0:00:05.3]} 38. Qh4 {[%clk 0:00:35.7]} 38... Kg7 {[%clk 0:00:05.1]} 39.
Qh6+ {[%clk 0:00:35.8]} 39... Kg8 {[%clk 0:00:05.1]} 40. h4 {[%clk 0:00:36.7]}
40... Qg7 {[%clk 0:00:04.4]} 41. Qxg7+ {[%clk 0:00:34.6]} 41... Kxg7 {[%clk
0:00:05.3]} 42. Bd2 {[%clk 0:00:31.3]} 42... Nb7 {[%clk 0:00:04.6]} 43. Bc3
{[%clk 0:00:29.5]} 43... Kf7 {[%clk 0:00:04.7]} 44. Kg3 {[%clk 0:00:29.8]} 44...
Ke7 {[%clk 0:00:05]} 45. Ra3 {[%clk 0:00:28.4]} 45... Rdb8 {[%clk 0:00:04.9]}
46. Rda1 {[%clk 0:00:28.3]} 46... Kd7 {[%clk 0:00:04.1]} 47. Bxa5 {[%clk
0:00:28.5]} 47... Nc5 {[%clk 0:00:03.4]} 48. Bc3 {[%clk 0:00:21.3]} 48... Rxa3
{[%clk 0:00:02.9]} 49. Rxa3 {[%clk 0:00:22.2]} 49... Kc6 {[%clk 0:00:01.4]} 50.
Kf2 {[%clk 0:00:21.4]} 50... Kc7 {[%clk 0:00:00.9]} 51. Ke3 {[%clk 0:00:21.4]}
51... Kb7 {[%clk 0:00:01]} 52. Kd2 {[%clk 0:00:18.5]} 52... f5 {[%clk
0:00:01.1]} 53. b4 {[%clk 0:00:17.3]} 53... Nd7 {[%clk 0:00:01.5]} 54. Bd3
{[%clk 0:00:17.1]} 54... f4 {[%clk 0:00:01.8]} 55. Kc2 {[%clk 0:00:16.5]} 55...
Rc8 {[%clk 0:00:02.4]} 56. Kb3 {[%clk 0:00:16.5]} 56... Nb6 {[%clk 0:00:03.1]}
57. Be1 {[%clk 0:00:14]} 57... Nxc4 {[%clk 0:00:03.6]} 58. Bxc4 {[%clk 0:00:14]}
58... Rxc4 {[%clk 0:00:04.5]} 59. Kb2 {[%clk 0:00:11.8]} 59... h5 {[%clk
0:00:04.9]} 60. Rd3 {[%clk 0:00:11.6]} 60... Rc6 {[%clk 0:00:05.2]} 61. Bc3
{[%clk 0:00:11.5]} 61... Kb6 {[%clk 0:00:05.7]} 62. Rd1 {[%clk 0:00:11.3]} 62...
Kb5 {[%clk 0:00:06.1]} 63. Ra1 {[%clk 0:00:11.7]} 63... Kc4 {[%clk 0:00:06.4]}
64. Ra7 {[%clk 0:00:11.6]} 64... Kd3 {[%clk 0:00:06.6]} 65. Be1 {[%clk
0:00:11.8]} 65... Rc2+ {[%clk 0:00:06.9]} 66. Kb1 {[%clk 0:00:10.6]} 66... Re2
{[%clk 0:00:07.1]} 67. Re7 {[%clk 0:00:06.2]} 67... Rxe1+ {[%clk 0:00:07.2]} 68.
Kb2 {[%clk 0:00:05.9]} 68... Re2+ {[%clk 0:00:07.9]} 69. Kb1 {[%clk 0:00:06.4]}
69... Bb3 {[%clk 0:00:07.1]} 70. Rd7 {[%clk 0:00:06.4]} 70... Kc3 {[%clk
0:00:07.2]} 71. Rc7+ {[%clk 0:00:06.6]} 71... Bc4 {[%clk 0:00:07.6]} 72. b5
{[%clk 0:00:06.1]} 72... Re1# {[%clk 0:00:07.9]} 0-1